bitfinex/quotes_ETHUSD_20251118
["timestamp","ask_amount","ask_price","bid_price","bid_amount"]
[1763435558758,0.52664462,2986.5,2985.9,0.182]
[1763435558759,0.52664462,2986.5,2985.9,2.65181712]
[1763435559285,0.52664462,2986.5,2986.4,2.40268371]
[1763435559964,0.52664462,2986.5,2986.3,2.40268371]
[1763435560165,0.52664462,2986.5,2986.2,2.40268371]
[1763435560369,0.52664462,2986.5,2986.3,2.40268371]
[1763435560697,0.52664462,2986.5,2986.2,2.40268371]
[1763435561613,0.52664462,2986.5,2985.5,0.3401989]
[1763435561614,0.52664462,2986.5,2986.1,2.40268371]
[1763435561817,0.52664462,2986.5,2986.0,2.40268371]
[1763435563204,0.52664462,2986.5,2986.4,1.80516571]
[1763435563697,0.52664462,2986.5,2986.1,1.87595331]
[1763435564504,0.52664462,2986.5,2985.5,0.3401989]
[1763435564684,0.52664462,2986.5,2985.5,4.22442972]
[1763435565098,0.52664462,2986.5,2985.4,4.22442972]
[1763435565604,0.52664462,2986.5,2985.5,4.22442972]
[1763435567101,0.405504,2986.4,2985.5,4.22442972]
[1763435567502,0.405504,2986.4,2985.4,4.22442972]
[1763435567803,0.52664462,2986.5,2985.9,1.80832144]
[1763435568000,0.4879,2986.8,2986.2,1.80832144]
[1763435568001,0.405504,2986.7,2986.2,1.80832144]
[1763435568370,0.405504,2986.5,2986.2,1.80832144]
[1763435568880,0.405504,2986.4,2986.2,1.80832144]
[1763435569393,0.405504,2986.4,2986.3,1.80832144]
[1763435569564,0.405504,2986.4,2986.2,1.80832144]
[1763435569764,0.405504,2986.8,2985.4,3.01388521]
[1763435569961,0.405504,2986.8,2986.4,1.80811155]
[1763435570266,0.405504,2986.6,2986.4,1.80811155]
[1763435570896,0.405504,2987.1,2986.4,1.80811155]
[1763435571095,0.405504,2986.5,2986.4,1.80811155]
[1763435571500,0.4879,2986.9,2985.6,3.01388521]
[1763435571689,0.4879,2986.9,2986.6,1.80832142]
[1763435572009,0.405504,2986.8,2986.6,1.80832142]
[1763435572169,0.869304,2986.7,2986.6,1.80832142]
[1763435572577,1.357204,2986.7,2986.6,1.80832142]
[1763435573190,1.357204,2986.7,2986.5,1.80832142]
[1763435573191,0.405504,2986.6,2986.5,1.80832142]
[1763435573395,0.405504,2986.6,2986.3,1.80832142]
[1763435573396,1.357204,2986.6,2986.3,1.80832142]
[1763435573718,1.556304,2986.6,2986.2,1.80832142]
[1763435573905,0.405504,2986.4,2986.2,1.80832142]
[1763435574217,0.5267682,2986.9,2985.9,2.41219652]
[1763435574419,0.5267682,2986.9,2986.3,2.41219652]
[1763435574565,0.5267682,2986.9,2986.5,2.41219652]
[1763435574765,0.5267682,2986.9,2986.8,2.41219652]
[1763435574980,0.5267682,2986.9,2986.5,3.01388521]
[1763435575180,0.1991,2987.2,2986.5,3.01388521]
[1763435575485,0.4879,2987.1,2986.9,2.41131713]
[1763435575711,0.4879,2987.1,2986.7,2.41131713]
[1763435576013,0.405504,2986.7,2986.5,2.41131713]
[1763435576381,0.4879,2986.7,2986.5,2.41131713]
[1763435576989,0.4638,2986.6,2986.4,2.41131713]
[1763435577483,0.9517,2986.6,2986.4,2.41131713]
[1763435577682,0.4638,2986.5,2986.4,2.41131713]
[1763435577989,0.9517,2986.5,2986.4,2.41131713]
[1763435578190,0.4638,2986.5,2986.4,2.41131713]
[1763435578416,1.47843158,2986.5,2986.4,2.41131713]
[1763435578617,1.47843158,2986.5,2986.3,1.88458501]
[1763435578817,0.9517,2986.5,2986.3,1.88458501]
[1763435579407,1.357204,2986.4,2986.3,1.88458501]
[1763435579592,0.405504,2986.2,2985.9,3.01388521]
[1763435579797,0.405504,2986.2,2985.6,3.01388521]
[1763435580624,0.4879,2986.5,2985.8,3.01388521]
[1763435580625,0.405504,2986.4,2985.8,3.01388521]
[1763435580826,0.405504,2986.4,2985.9,3.01388521]
[1763435581189,0.4879,2986.5,2985.9,3.01388521]
[1763435581401,0.893404,2986.8,2985.9,3.01388521]
[1763435582030,0.405504,2986.5,2986.0,2.4871379]
[1763435582235,0.405504,2986.5,2985.6,0.0334941]
[1763435582535,0.405504,2986.8,2985.5,4.22442972]
[1763435582693,0.405504,2986.8,2985.6,4.22442972]
[1763435582893,0.405504,2986.6,2985.6,4.22442972]
[1763435583121,0.405504,2986.6,2985.6,0.42244297]
[1763435583322,0.405504,2986.4,2985.5,4.22442972]
[1763435583538,0.405504,2986.4,2985.4,4.22442972]
[1763435583958,0.405504,2986.4,2985.3,4.22442972]
[1763435584108,0.405504,2986.4,2984.9,0.001]
[1763435584109,0.405504,2985.4,2984.9,1.64785873]
[1763435585330,0.893404,2985.4,2984.9,1.64785873]
[1763435585844,0.405504,2985.4,2985.0,0.03350083]
[1763435586136,0.405504,2985.6,2984.9,0.001]
[1763435586729,0.50549218,2987.0,2985.0,1.64481567]
[1763435586730,0.405504,2985.9,2985.0,1.64481567]
[1763435587125,0.1824,2986.2,2985.0,1.64481567]
[1763435587126,1.31249664,2985.3,2985.0,1.64481567]
[1763435587562,0.4721,2985.2,2985.0,1.64481567]
[1763435587752,0.405504,2985.5,2985.0,1.64481567]
[1763435587957,0.90699264,2985.8,2985.0,1.64481567]
[1763435587958,0.405504,2985.7,2985.0,1.64481567]
[1763435588166,0.877604,2985.7,2985.0,1.64481567]
[1763435588359,1.31249664,2985.3,2985.0,1.64481567]
[1763435588666,1.31249664,2985.3,2984.9,0.001]
[1763435588843,0.405504,2985.1,2984.5,0.001]
[1763435589048,9.73688455,2984.6,2984.5,0.001]
[1763435589438,10.20898455,2984.6,2984.5,0.001]
[1763435589969,1.31249664,2984.6,2984.5,0.001]
[1763435590838,0.90699264,2984.6,2984.5,0.001]
[1763435592369,0.90699264,2984.6,2984.3,2.41184511]
[1763435592370,0.405504,2984.4,2984.2,1.88684696]
[1763435592585,0.1824,2984.9,2984.2,1.88684696]
[1763435592586,0.405504,2984.8,2984.2,1.88684696]
[1763435592768,0.405504,2984.8,2984.5,0.001]
[1763435593337,0.405504,2984.6,2984.5,0.001]
[1763435593534,0.405504,2984.9,2984.5,0.001]
[1763435593778,0.1824,2985.7,2984.9,0.001]
[1763435593992,0.002,2986.0,2984.9,3.01048841]
[1763435594157,0.002,2986.0,2985.8,1.80343978]
[1763435594989,0.002,2986.0,2985.9,1.80343978]
[1763435595198,0.6545,2985.9,2985.8,1.80376816]
[1763435595490,0.405504,2985.8,2985.6,1.80376816]
[1763435595897,0.877604,2985.8,2985.6,1.80376816]
[1763435596397,0.405504,2985.8,2985.6,1.80376816]
[1763435597493,0.877604,2985.8,2985.6,1.80376816]
[1763435597799,0.002,2986.0,2985.7,1.80376816]
[1763435597999,0.405504,2985.8,2985.7,1.80376816]
[1763435598692,0.405504,2985.8,2984.9,3.01048841]
[1763435598693,0.894304,2985.8,2985.6,1.80376816]
[1763435599292,0.405504,2985.8,2985.6,1.80376816]
[1763435599683,0.002,2986.0,2985.6,1.80376816]
[1763435599873,0.405504,2985.8,2985.6,1.80376816]
[1763435601500,0.894304,2985.8,2985.6,1.80376816]
[1763435602000,0.405504,2985.8,2985.6,1.80376816]
[1763435603199,0.405504,2985.8,2984.8,3.01048841]
[1763435603200,0.002,2986.0,2985.7,1.80376816]
[1763435603616,0.002,2986.0,2985.9,0.001]
[1763435603769,0.002,2986.0,2985.9,0.03549073]
[1763435603969,0.002,2986.0,2985.9,0.002]
[1763435606099,0.002,2986.0,2985.8,3.01048841]
[1763435606284,0.002,2986.0,2985.7,3.01048841]
[1763435606472,0.002,2986.0,2985.4,0.001]
[1763435606473,0.002,2986.0,2985.9,2.40612625]
[1763435607071,0.002,2986.0,2985.9,2.40712625]
[1763435607521,1.361904,2986.0,2985.9,2.40612625]
[1763435607686,0.407504,2986.0,2985.6,2.40612625]
[1763435607890,0.187,2985.9,2985.6,2.40612625]
[1763435608979,0.187,2985.9,2985.5,2.40612625]
[1763435608980,0.4656,2985.7,2985.5,2.40612625]
[1763435609178,0.1871,2985.6,2985.3,2.40612625]
[1763435609408,0.1871,2985.6,2985.2,2.40612625]
[1763435609706,0.1871,2985.6,2985.3,2.40612625]
[1763435609910,0.1871,2985.6,2984.2,0.001]
[1763435609911,0.1871,2985.6,2985.4,2.40612625]
[1763435612526,0.1871,2985.6,2985.5,2.40612625]
[1763435614010,0.1871,2985.6,2985.4,2.40612625]
[1763435614436,0.002,2986.3,2985.4,2.40612625]
[1763435614437,0.002,2986.3,2985.4,0.24061262]
[1763435614639,0.002,2986.3,2986.0,0.405504]
[1763435614928,0.1397,2987.9,2986.2,8.24198791]
[1763435615133,0.6285,2987.9,2987.7,1.80597046]
[1763435615427,0.6285,2987.9,2986.3,0.001]
[1763435615428,0.4888,2987.8,2987.5,1.80597046]
[1763435615791,0.1397,2987.9,2987.5,1.80597046]
[1763435616123,0.4929,2987.8,2987.4,1.80597046]
[1763435616303,0.6326,2987.9,2987.4,1.80597046]
[1763435616677,0.4929,2987.8,2987.4,1.80597046]
[1763435617118,0.405504,2987.7,2987.3,1.80597046]
[1763435617615,0.405504,2987.6,2987.4,1.80597046]
[1763435617818,0.405504,2987.8,2987.4,1.80597046]
[1763435618187,0.405504,2987.8,2987.3,1.80597046]
[1763435618626,0.898404,2987.8,2987.3,1.80597046]
[1763435620030,0.405504,2987.8,2987.3,1.80597046]
[1763435620196,0.4929,2987.7,2987.3,1.80597046]
[1763435621222,0.405504,2987.8,2987.3,1.80597046]
[1763435621438,0.898404,2987.8,2987.3,1.80597046]
[1763435621593,0.405504,2987.3,2986.7,1.80597046]
[1763435622223,0.405504,2987.2,2986.7,1.80597046]
[1763435622536,1.041504,2986.8,2986.7,1.80597046]
[1763435623022,0.405504,2987.7,2986.7,0.001]
[1763435623224,0.1397,2987.9,2986.8,1.80295988]
[1763435623386,0.1397,2987.9,2987.2,1.80295988]
[1763435623588,0.6326,2987.9,2987.3,1.80295988]
[1763435624524,0.405504,2987.3,2987.2,1.80295988]
[1763435624733,0.405504,2987.2,2986.8,1.80295988]
[1763435624912,0.1819,2986.9,2986.8,1.80295988]
[1763435625517,0.1819,2986.9,2986.7,1.80295988]
[1763435625690,0.1819,2986.9,2986.6,1.80295988]
[1763435626315,0.405504,2986.8,2986.6,1.80295988]
[1763435627636,1.04669264,2987.9,2986.7,0.03448176]
[1763435627866,0.405504,2987.4,2986.8,1.80295988]
[1763435628146,0.1819,2986.9,2986.7,1.80295988]
[1763435629049,0.1397,2987.9,2986.8,1.80295988]
[1763435629217,0.405504,2987.2,2986.8,1.80295988]
[1763435629423,1.041504,2986.9,2986.8,1.80295988]
[1763435630024,1.534404,2986.9,2986.7,1.80295988]
[1763435630209,0.405504,2986.9,2986.7,1.80295988]
[1763435631629,0.405504,2986.9,2986.8,1.80295988]
[1763435631840,0.1417,2987.9,2986.8,0.001]
[1763435632051,0.1417,2987.9,2987.1,1.80429341]
[1763435632052,0.4929,2987.8,2987.1,1.80429341]
[1763435632213,0.1417,2987.9,2987.4,1.80429341]
[1763435632412,0.1417,2987.9,2986.6,0.001]
[1763435632413,0.1417,2987.9,2987.5,1.80429341]
[1763435632945,0.002,2987.9,2987.8,1.80429341]
[1763435633117,0.407504,2987.9,2987.8,1.80429341]
[1763435633463,0.002,2987.9,2987.8,1.80429341]
[1763435634018,1.354504,2987.9,2987.8,1.80429341]
[1763435634203,0.002,2987.9,2987.8,1.80429341]
[1763435634407,0.002,2987.9,2987.6,2.40796061]
[1763435635307,0.002,2987.9,2987.8,0.001]
[1763435636114,0.002,2987.9,2987.8,2.4025562]
[1763435636738,0.002,2987.9,2987.5,2.4025562]
[1763435637054,0.002,2987.9,2986.6,4.22442972]
[1763435637055,0.002,2987.9,2987.8,0.001]
[1763435637759,0.002,2987.9,2987.8,0.002]
[1763435638052,0.002,2987.9,2987.8,0.30319508]
[1763435638220,0.002,2987.9,2987.8,0.43757049]
[1763435638544,7.503e-05,2987.9,2987.8,0.33566452]
[1763435638711,7.503e-05,2987.9,2987.8,0.03546944]
[1763435638904,7.503e-05,2987.9,2987.8,0.16984891]
[1763435639530,7.503e-05,2987.9,2987.8,3.00041998]
[1763435639727,7.503e-05,2987.9,2987.8,0.001]
[1763435639965,7.503e-05,2987.9,2987.7,2.3997785]
[1763435640120,7.503e-05,2987.9,2987.5,2.3997785]
[1763435640315,7.503e-05,2987.9,2987.8,0.001]
[1763435640563,7.503e-05,2987.9,2987.7,2.3997785]
[1763435640564,0.18197503,2987.9,2987.7,2.3997785]
[1763435640870,0.18197503,2987.9,2987.8,1.80067753]
[1763435641019,7.503e-05,2987.9,2987.5,2.3997785]
[1763435641523,7.503e-05,2987.9,2987.6,2.3997785]
[1763435642122,7.503e-05,2987.9,2987.7,2.3997785]
[1763435642352,0.18197503,2987.9,2987.6,2.3997785]
[1763435642661,0.18197503,2987.9,2987.5,2.3997785]
[1763435643046,0.18197503,2987.9,2987.8,1.80173028]
[1763435643247,0.18197503,2987.9,2986.7,4.22442972]
[1763435643248,0.18197503,2987.9,2987.5,2.3997785]
[1763435643421,7.503e-05,2987.9,2987.5,2.3997785]
[1763435644161,0.67487503,2987.9,2987.6,2.3997785]
[1763435644540,0.67487503,2987.9,2987.5,2.3997785]
[1763435644541,0.4541,2987.7,2987.5,2.3997785]
[1763435644838,0.4541,2987.7,2986.6,2.3997785]
[1763435644839,0.405504,2987.4,2986.6,2.3997785]
[1763435645164,0.405504,2987.4,2986.5,0.001]
[1763435645165,0.405504,2986.6,2986.5,0.001]
[1763435645332,0.776304,2986.6,2986.5,0.001]
[1763435645535,0.776304,2986.6,2986.3,0.001]
[1763435645536,0.90699264,2986.5,2986.3,0.001]
[1763435645835,0.857804,2986.4,2986.3,0.001]
[1763435646156,1.346004,2986.4,2986.3,0.001]
[1763435647196,0.1819,2986.7,2986.3,0.001]
[1763435647498,0.1819,2987.3,2986.6,0.4753]
[1763435647784,0.1819,2987.3,2986.3,2.4007785]
[1763435648091,0.1819,2987.3,2986.4,2.68759635]
[1763435648092,0.6701,2987.3,2986.4,2.68759635]
[1763435648382,0.6701,2987.3,2986.5,2.43326251]
[1763435648583,0.1819,2987.3,2986.6,2.3997785]
[1763435648787,0.002,2986.9,2986.8,2.3997785]
[1763435648961,0.002,2986.9,2986.8,0.24332603]
[1763435649546,0.002,2986.9,2986.6,2.99941998]
[1763435649753,0.002,2986.9,2986.5,2.99941998]
[1763435650082,0.002,2986.9,2986.8,2.40231261]
[1763435650591,0.002,2986.9,2986.8,2.87971261]
[1763435650751,0.002,2986.9,2986.8,0.4774]
[1763435650951,0.002,2986.9,2986.6,2.99941998]
[1763435651166,0.002,2986.9,2986.7,0.3404924]
[1763435651395,0.002,2986.9,2986.6,0.4774]
[1763435651693,0.002,2986.9,2986.8,2.40225247]
[1763435651895,0.002,2986.9,2986.7,2.40225247]
[1763435652270,0.002,2986.9,2986.8,2.40225247]
[1763435652454,0.002,2986.9,2986.8,0.91428464]
[1763435652654,8.106e-05,2986.9,2986.8,3.95211998]
[1763435652985,8.106e-05,2986.9,2986.8,5.57568989]
[1763435653581,0.1819,2986.9,2986.4,7.28577254]
[1763435653781,0.405504,2986.2,2985.6,1.36279369]
[1763435654095,0.405504,2984.4,2984.1,0.001]
[1763435654257,9.1469461,2984.3,2984.1,0.001]
[1763435654585,1.31249664,2984.3,2984.1,0.1905]
[1763435654787,0.90699264,2984.3,2984.1,0.22401094]
[1763435655087,0.90699264,2984.3,2984.2,0.4784]
[1763435655988,0.87980517,2984.3,2984.2,0.4784]
[1763435656391,0.1777,2986.1,2984.2,0.4784]
[1763435656960,0.405504,2986.0,2984.3,0.03350869]
[1763435657178,0.405504,2986.0,2984.2,0.4784]
[1763435657690,0.405504,2986.0,2984.3,0.4784]
[1763435658293,0.405504,2986.0,2984.4,0.4774]
[1763435658493,0.61668591,2985.9,2984.3,0.4784]
[1763435658692,1.31249664,2984.9,2984.2,0.001]
[1763435658855,0.405504,2984.7,2984.2,0.001]
[1763435659396,0.43898591,2984.8,2984.2,0.001]
[1763435659785,0.1777,2986.0,2984.3,0.50380869]
[1763435659974,1.08469264,2986.0,2984.3,0.6048311]
[1763435660177,0.1777,2986.0,2984.4,0.4703]
[1763435660998,0.405504,2985.9,2984.4,0.4203]
[1763435661202,0.405504,2985.5,2984.4,0.4203]
[1763435661510,0.405504,2985.5,2984.2,0.1912]
[1763435661511,1.31249664,2985.0,2984.2,0.001]
[1763435661911,0.405504,2984.4,2984.2,0.001]
[1763435662223,0.43898591,2984.4,2984.2,0.001]
[1763435662398,0.405504,2984.4,2984.2,0.001]
[1763435662984,0.90699264,2984.5,2984.2,0.001]
[1763435663223,0.405504,2984.9,2984.2,0.001]
[1763435664590,0.633204,2984.9,2984.2,0.001]
[1763435664793,1.31249664,2984.5,2984.2,0.001]
[1763435666139,1.59,2985.0,2984.2,0.4713]
[1763435667121,1.59,2985.0,2984.3,0.03350869]
[1763435667291,1.59,2985.0,2984.2,0.4713]
[1763435667621,1.592,2985.0,2984.2,0.4713]
[1763435670334,0.405504,2984.9,2984.2,0.001]
[1763435670836,0.405504,2984.9,2983.7,0.4313]
[1763435671132,0.405504,2984.9,2984.1,0.1902]
[1763435671318,0.43898591,2984.9,2984.1,0.1902]
[1763435671630,0.672204,2984.9,2983.7,0.4313]
[1763435672640,1.592,2985.0,2983.7,0.46481543]
[1763435672975,0.405504,2984.9,2983.7,0.4313]
[1763435673531,0.43898591,2984.9,2983.7,0.4313]
[1763435673836,0.405504,2984.8,2983.6,0.001]
[1763435674024,0.405504,2984.9,2983.6,0.4713]
[1763435675109,0.405504,2984.9,2983.6,2.16293224]
[1763435675549,0.405504,2984.9,2983.7,0.4703]
[1763435675706,0.405504,2984.9,2983.8,0.21629322]
[1763435676246,0.405504,2984.9,2983.9,0.4951]
[1763435676418,0.03348191,2984.8,2983.6,1.69263224]
[1763435676618,0.672204,2984.9,2983.6,1.69263224]
[1763435676835,1.592,2985.0,2983.7,0.4951]
[1763435677042,1.592,2985.0,2983.8,0.21877322]
[1763435677245,0.405504,2984.9,2983.7,0.4951]
[1763435678056,0.03348191,2984.8,2983.7,0.4951]
[1763435678259,0.03348191,2984.7,2983.6,1.69263224]
[1763435678429,0.405504,2984.7,2983.6,1.69263224]
[1763435678629,0.672204,2984.7,2983.6,1.69263224]
[1763435679025,0.405504,2984.5,2983.6,1.69263224]
[1763435680567,0.405504,2984.7,2983.7,0.4951]
[1763435680766,0.0848,2984.8,2983.7,0.4546]
[1763435680974,0.405504,2984.6,2983.7,0.4546]
[1763435681179,0.405504,2984.6,2983.6,1.91210546]
[1763435681475,0.03348191,2984.7,2983.6,1.91210546]
[1763435681476,0.405504,2984.7,2983.6,1.69263224]
[1763435681677,0.712704,2984.7,2983.6,1.69263224]
[1763435682364,0.3072,2984.6,2983.6,1.69263224]
[1763435682730,0.405504,2984.7,2983.6,1.69263224]
[1763435683038,0.405504,2984.7,2983.6,2.18773224]
[1763435683254,0.405504,2984.7,2983.6,1.91210546]
[1763435683443,0.405504,2984.7,2983.7,0.4951]
[1763435687237,0.002,2984.9,2984.6,0.6467]
[1763435689481,0.002,2984.9,2984.8,0.4562]
[1763435690853,0.002,2984.9,2984.8,0.41975]
[1763435691053,0.002,2984.9,2984.8,0.91485]
[1763435691248,0.002,2984.9,2984.8,0.41975]
[1763435692071,0.002,2984.9,2984.6,0.5784191]
[1763435692652,0.002,2984.9,2984.8,0.4562]
[1763435693059,0.002,2984.9,2984.8,0.9513]
[1763435696490,0.002,2984.9,2984.8,0.4562]
[1763435697262,0.6742,2984.9,2984.1,0.4951]
[1763435697466,0.6742,2984.9,2984.1,0.6856]
[1763435697467,1.92239264,2984.9,2984.1,0.6856]
[1763435697802,0.3412,2984.8,2983.7,0.4951]
[1763435698099,0.90899264,2984.9,2983.8,0.24072055]
[1763435698400,0.90899264,2984.9,2983.9,0.4951]
[1763435700282,0.002,2984.9,2984.8,0.6467]
[1763435700569,0.002,2985.2,2984.9,0.4562]
[1763435700799,0.002,2985.2,2985.1,0.4562]
[1763435701120,0.002,2985.2,2984.8,0.1905]
[1763435701298,0.002,2985.2,2985.1,0.4562]
[1763435701465,0.002,2985.2,2984.8,0.6856]
[1763435701667,0.002,2985.2,2985.1,0.4562]
[1763435701976,0.002,2985.2,2985.1,0.62325]
[1763435702184,0.4928,2985.2,2984.3,0.03350869]
[1763435702394,0.4928,2985.2,2984.3,0.47498138]
[1763435702607,0.002,2985.2,2983.9,0.1905]
[1763435702793,0.002,2985.2,2985.1,0.4955]
[1763435702975,0.002,2985.2,2985.1,0.9906]
[1763435703543,0.002,2985.2,2984.8,0.1905]
[1763435703701,0.002,2985.2,2985.1,0.4562]
[1763435704209,0.002,2985.2,2984.8,0.1905]
[1763435704532,0.002,2985.2,2984.9,0.4951]
[1763435704732,0.002,2985.2,2985.1,0.4562]
[1763435705329,0.002,2985.2,2984.8,0.1905]
[1763435705634,0.002,2985.2,2985.1,0.4562]
[1763435706136,0.002,2985.2,2985.1,0.97689971]
[1763435706912,0.002,2985.2,2985.1,0.9434]
[1763435707309,0.002,2985.2,2984.8,0.11988008]
[1763435707529,0.002,2985.2,2984.8,0.39438008]
[1763435707832,0.002,2985.2,2985.1,0.2745]
[1763435708210,0.002,2985.2,2984.8,0.11988008]
[1763435709039,0.002,2985.2,2985.1,0.2745]
[1763435709753,0.002,2985.6,2985.1,0.58249971]
[1763435709912,0.2,2987.1,2985.5,0.2745]
[1763435710117,0.2,2987.1,2985.6,0.0334941]
[1763435710303,0.4999,2987.0,2985.6,0.3079941]
[1763435710733,0.4999,2987.0,2985.6,0.2745]
[1763435711041,0.405504,2986.9,2985.6,0.2745]
[1763435711842,0.405504,2986.8,2985.6,0.2745]
[1763435712037,0.002,2987.2,2985.7,0.03349298]
[1763435712240,0.002,2987.2,2985.8,0.2745]
[1763435712443,0.002,2987.2,2985.9,0.03349073]
[1763435712964,0.002,2987.2,2986.0,0.2745]
[1763435713106,0.002,2987.2,2986.1,0.03348849]
[1763435713450,0.002,2987.2,2986.0,0.2745]
[1763435713747,0.002,2987.2,2986.1,0.03348849]
[1763435714114,0.002,2987.2,2986.2,0.2745]
[1763435714307,0.002,2987.2,2986.3,0.03348625]
[1763435714735,0.002,2987.2,2986.3,0.30798625]
[1763435715345,0.002,2987.2,2986.3,0.2745]
[1763435715544,0.5019,2987.2,2986.0,0.2745]
[1763435716134,0.002,2987.2,2986.1,0.03348849]
[1763435716359,0.002,2987.2,2986.0,0.30798961]
[1763435718172,0.002,2987.2,2987.1,0.4291]
[1763435718379,0.002,2987.2,2987.1,0.1546]
[1763435718664,0.002,2987.2,2987.1,0.4291]
[1763435718876,0.002,2987.2,2987.1,0.7036]
[1763435719179,0.002,2987.5,2987.1,0.7036]
[1763435719377,0.002,2987.5,2987.4,0.2745]
[1763435719681,0.002,2987.5,2987.4,0.30797392]
[1763435719967,0.002,2987.5,2987.4,0.58247392]
[1763435720768,7.503e-05,2987.9,2987.4,0.58247392]
[1763435720936,7.503e-05,2987.9,2987.8,0.2745]
[1763435721446,7.503e-05,2987.9,2987.3,0.2745]
[1763435721645,7.503e-05,2987.9,2987.8,0.2745]
[1763435722768,7.503e-05,2987.9,2987.8,0.549]
[1763435723176,7.503e-05,2987.9,2987.8,0.2745]
[1763435723376,7.503e-05,2987.9,2987.8,0.03346944]
[1763435723566,0.19547503,2987.9,2987.2,0.03347616]
[1763435723772,0.4999,2987.8,2987.1,0.13438986]
[1763435723995,0.4703,2987.2,2986.2,0.1546]
[1763435724486,0.4999,2987.1,2986.2,0.1546]
[1763435725391,0.4999,2987.1,2986.3,0.03348625]
[1763435726851,0.4999,2987.6,2986.3,0.2745]
[1763435727257,0.4999,2987.5,2986.4,0.03348513]
[1763435727470,0.4999,2987.5,2986.3,0.2745]
[1763435727886,0.19547503,2987.9,2986.4,0.2745]
[1763435728050,0.19547503,2987.9,2986.5,0.03348401]
[1763435728250,0.19547503,2987.9,2986.7,0.405504]
[1763435728580,7.503e-05,2987.9,2986.9,0.405504]
[1763435728780,7.503e-05,2987.9,2987.8,0.2745]
[1763435729280,7.503e-05,2987.9,2987.5,0.13436503]
[1763435730351,0.19547503,2987.9,2986.9,0.03347952]
[1763435730550,7.503e-05,2987.9,2987.0,0.2745]
[1763435730779,7.503e-05,2987.9,2987.2,0.13437902]
[1763435731191,0.19547503,2987.9,2987.2,0.13437902]
[1763435731552,7.503e-05,2987.9,2987.2,0.13437902]
[1763435732072,0.19547503,2987.9,2987.2,0.13437902]
[1763435732274,0.19547503,2987.9,2986.7,0.30798176]
[1763435732472,0.19547503,2987.9,2987.0,0.2745]
[1763435732673,0.19547503,2987.9,2986.7,0.30798176]
[1763435732873,0.19547503,2987.9,2986.9,0.2745]
[1763435733090,7.503e-05,2987.9,2987.0,0.0334784]
[1763435733300,0.1954,2987.8,2987.0,0.0334784]
[1763435733869,0.1954,2987.8,2986.9,0.2745]
[1763435734323,0.4999,2987.7,2986.3,0.2745]
[1763435734469,0.4999,2987.7,2986.5,0.03348401]
[1763435734676,0.4999,2987.7,2986.7,0.405504]
[1763435734917,0.4999,2987.7,2984.8,8.36909722]
[1763435734918,0.6657,2986.3,2984.8,4.34208522]
[1763435735213,0.43898591,2987.6,2985.4,0.405504]
[1763435735214,0.405504,2987.6,2985.4,0.405504]
[1763435735385,0.405504,2987.6,2985.5,0.30799522]
[1763435735386,0.1954,2986.7,2985.5,0.30799522]
[1763435735571,0.1954,2986.7,2985.4,0.405504]
[1763435735572,0.1954,2986.7,2985.4,0.43900034]
[1763435735773,0.1954,2986.7,2985.5,0.2745]
[1763435736116,8.24821714,2987.7,2985.6,0.0334941]
[1763435736117,0.1885,2986.9,2985.6,0.0334941]
[1763435736499,0.1885,2986.9,2985.7,0.2745]
[1763435737003,0.1885,2986.9,2985.8,0.03349186]
[1763435737202,0.451,2987.3,2985.9,0.2745]
[1763435737517,0.451,2987.3,2986.0,0.03348961]
[1763435738018,0.451,2987.3,2986.1,0.1546]
[1763435738390,0.451,2987.3,2986.2,0.03348737]
[1763435738584,0.405504,2987.7,2986.2,0.30798737]
[1763435738797,0.451,2987.6,2986.2,0.30798737]
[1763435739718,0.90699264,2987.5,2985.7,0.03349298]
[1763435739877,0.90699264,2987.5,2985.8,0.451]
[1763435739878,0.856504,2987.4,2985.8,0.451]
[1763435740302,0.451,2987.3,2985.8,0.451]
[1763435740671,0.451,2987.3,2985.9,0.30799073]
[1763435741086,0.90699264,2988.0,2985.9,0.30799073]
[1763435741087,0.90699264,2988.0,2987.2,0.4291]
[1763435741285,0.002,2988.2,2987.3,0.03347504]
[1763435741678,0.002,2988.2,2987.4,0.13436954]
[1763435741878,0.002,2988.2,2987.5,0.0334728]
[1763435742499,0.002,2988.2,2987.4,0.52819386]
[1763435742704,0.002,2988.2,2987.4,0.49471994]
[1763435743588,0.002,2988.2,2987.4,0.76921994]
[1763435743788,0.002,2988.2,2987.4,0.49471994]
[1763435743978,0.002,2988.2,2987.5,0.0334728]
[1763435744179,0.002,2988.2,2987.4,0.76921994]
[1763435744180,0.002,2988.2,2987.4,0.52819386]
[1763435744429,0.002,2988.2,2987.4,0.39382432]
[1763435744603,0.002,2988.2,2987.5,0.13436593]
[1763435744807,0.18857503,2987.9,2987.5,0.13436593]
[1763435745109,0.451,2987.8,2987.2,0.1546]
[1763435745311,0.451,2987.8,2987.2,0.47071594]
[1763435745513,0.451,2987.8,2987.2,0.1546]
[1763435745716,0.451,2987.8,2986.8,0.2745]
[1763435745717,0.4858,2987.3,2986.8,3.00655944]
[1763435746096,0.4858,2987.3,2986.4,0.1546]
[1763435746097,0.451,2987.2,2986.7,0.451]
[1763435746416,0.451,2987.7,2986.4,3.43565944]
[1763435746621,0.451,2987.7,2986.6,0.4858]
[1763435747179,0.18857503,2987.9,2986.6,0.4858]
[1763435747487,0.18857503,2987.9,2986.7,3.3145412]
[1763435747683,0.18857503,2987.9,2986.8,0.2745]
[1763435747889,0.002,2988.6,2986.8,0.2745]
[1763435747890,0.1885,2990.2,2986.9,3.90693364]
[1763435748228,0.1885,2990.6,2989.4,0.405504]
[1763435748427,0.1885,2990.6,2989.0,1.04369264]
[1763435748428,0.6395,2990.6,2990.1,2.39983229]
[1763435748593,0.1885,2990.6,2990.2,2.39983229]
[1763435748797,0.451,2990.3,2990.2,2.39983229]
[1763435748993,0.1885,2990.6,2990.2,2.39983229]
[1763435749328,0.1885,2990.6,2990.1,2.39983229]